Cogmind - Beta 14 *** ADVENTURER MODE // 2025.03.29 @ 08:28:15 // Winter2019/RPGLIKE Player: Gallgagger Result: Self-destructed Performance ------------- Evolutions (4) 2000 Regions Visited (6) 1200 Robots Destroyed (138) 690 Value Destroyed (4163) 4163 Prototype IDs (16) 320 Alien Tech Used (0) 0 Bonus (1600) 1600 TOTAL SCORE: 9973 Bonus ------- High Alert Combat Kills 1210 Follower Combat Kills 90 Registered with UFD 300 Cogmind --------- Core Integrity 149/600 Matter 240/300 Energy 220/220 System Corruption 0% Temperature Cool (0) Movement Hovering (52) Location -6/Factory Parts ------- > --- POWER (2) -------- Light Nuclear Core Light Nuclear Core > --- PROPULSION (3) --- Improved Hover Unit Improved Hover Unit Gravmag System > --- UTILITY (5) ------ Cooling System Weight Redist. System Seismic Detector Insulated Plating > --- WEAPON (3) ------- Disruptor Cannon Plasma Cannon LU-1G1's Laser Shovel > --- INVENTORY (3) ---- Protomatter-50 Plasma Cutter Peak State ------------ > --- POWER ------------ Light Nuclear Core Light Nuclear Core > --- PROPULSION ------- Improved Hover Unit Improved Hover Unit Gravmag System > --- UTILITY ---------- Cooling System Weight Redist. System Structural Scanner Seismic Detector Insulated Plating > --- WEAPON ----------- Heavy Particle Gun Junk Cannon > --- INVENTORY -------- Protomatter Plasma Cutter [Rating: 39] Favorites ----------- Power Light Nuclear Core Engine Light Ion Engine Power Core Light Nuclear Core Propulsion Improved Hover Unit Wheel Wheel Hover Unit Improved Hover Unit Utility Structural Scanner Device Structural Scanner Protection Insulated Plating Weapon Heavy Particle Gun Energy Gun Heavy Particle Gun Energy Cannon Beam Cannon Ballistic Gun Enhanced Autogun Special Weapon LU-1G1's Laser Shovel Build | -11 -10 -9 -9 -9 -9 -6 ------- Run | Yrd Mat Mat Sto Rec Scr Fac Slots Evolved 9 | 4 2 3 . . . . Power 1 | 1 . . . . . . Propulsion 2 | 1 1 . . . . . Utility 4 | 1 1 2 . . . . Weapon 2 | 1 . 1 . . . . Parts Attached 42 | 6 6 16 6 . 7 1 Power 4 | 2 1 1 . . . . Engine 2 | 2 . . . . . . Core 2 | . 1 1 . . . . Reactor . | . . . . . . . Propulsion 11 | 2 1 5 2 . 1 . Treads . | . . . . . . . Leg . | . . . . . . . Wheel 2 | 2 . . . . . . Hover 9 | . 1 5 2 . 1 . Flight . | . . . . . . . Utility 8 | . 3 5 . . . . Device 5 | . 2 3 . . . . Storage . | . . . . . . . Processor . | . . . . . . . Hackware . | . . . . . . . Protection 3 | . 1 2 . . . . Artifact . | . . . . . . . Weapon 19 | 2 1 5 4 . 6 1 Energy Gun 9 | 2 . 4 2 . 1 . Energy Cannon 6 | . 1 . 1 . 3 1 Ballistic Gun 1 | . . 1 . . . . Ballistic Cannon . | . . . . . . . Launcher . | . . . . . . . Special Weapon 3 | . . . 1 . 2 . Impact Weapon . | . . . . . . . Slashing Weapon . | . . . . . . . Piercing Weapon . | . . . . . . . Special Melee Weapon . | . . . . . . . Unidentified Prototypes 5 | . . 2 1 . 2 . Parts Lost . | . . . . . . . Power . | . . . . . . . Propulsion . | . . . . . . . Utility . | . . . . . . . Weapon . | . . . . . . . Highest Loss Streak . | . . . . . . . To Critical Strikes . | . . . . . . . Average Slot Usage (%) 97 | . 98 95 99 100 98 92 Engine 5 | . 13 5 . . . . Core 11 | . 8 10 15 15 15 15 Wheel 7 | . 22 3 . . . . Hover 17 | . 5 21 23 23 23 23 Device 26 | . 21 28 30 30 28 23 Protection 6 | . 5 7 7 7 7 7 Energy Gun 17 | . 16 15 21 23 15 . Energy Cannon 3 | . 6 1 . . 5 15 Peak Build Rating 39 | 6 12 27 31 31 39 38 Average Rating 22 | 4 10 21 30 31 34 38 On Entrance 19 | . 6 12 27 31 31 32 Naked Turns . | . . . . . . . Heaviest Build 35 | 9 18 23 27 26 35 35 Greatest Support 39 | 20 25 30 32 32 39 39 Greatest Overweight (x) 1 | . . 1 . . . . Average Overweight (x) . | . . . . . . . Largest Inventory Capacity 3 | . 1 1 2 2 3 3 Average Capacity 1 | . . 1 1 2 2 3 Most Carried 3 | . 1 1 2 2 3 2 Average Carried 1 | . . 1 1 2 2 2 Final Capacity 3 | . 1 1 2 2 3 3 Final Carried 3 | . 1 1 2 2 3 2 Class Distribution -------------------- 59% | Mutant 36% | Skirmisher 3% | Gunner Dominant Class ---------------- Mutant | -10/Materials Mutant | -9/Materials Skirmisher | -9/Storage Skirmisher | -9/Recycling Skirmisher | -9/Scraptown Gunner | -6/Factory Resources | -11 -10 -9 -9 -9 -9 -6 ----------- Run | Yrd Mat Mat Sto Rec Scr Fac Matter Collected 560 | 152 168 160 60 . 20 . Remotely . | . . . . . . . Salvage Created 4632 | . 1407 1757 1204 238 . 26 Parts 301 | . 79 119 87 12 . 4 Haulers Intercepted 7 | . 2 4 1 . . . Recyclers Shooed 1 | . . 1 . . . . Parts Field Recycled . | . . . . . . . Retrieved Matter . | . . . . . . . Parts Self-Destructed . | . . . . . . . Prevented . | . . . . . . . Kills | -11 -10 -9 -9 -9 -9 -6 ------- Run | Yrd Mat Mat Sto Rec Scr Fac Combat Hostiles Destroyed 113 | . 32 44 32 4 . 1 Guns 97 | . 19 43 31 4 . . Cannons 12 | . 12 . . . . . AOE 1 | . . . . . . 1 Classes Destroyed 12 | . 6 6 . . . . Worker 5 | . . 3 1 . . 1 Builder 2 | . . 2 . . . . Tunneler 2 | . 2 . . . . . Hauler 7 | . 2 4 1 . . . Operator 2 | . . 1 1 . . . Watcher 9 | . 3 4 2 . . . Swarmer 18 | . 6 7 4 . . 1 Grunt 64 | . 23 24 17 . . . Brawler 2 | . . 1 1 . . . Protector 2 | . . 2 . . . . Sentry 24 | . . 10 10 4 . . Subdweller 3 | . 3 . . . . . Best Kill Streak 15 | . 5 15 14 1 . 2 Combat Bots Only 11 | . 5 10 11 1 . 1 Max Kills in Single Turn 2 | . 2 2 2 1 . 2 Gunslinging 1 | . 1 1 . . . . Exploded 1 | . . . . . . 1 Melee . | . . . . . . . Uniques/NPCs Destroyed . | . . . . . . . Combat | -11 -10 -9 -9 -9 -9 -6 -------- Run | Yrd Mat Mat Sto Rec Scr Fac Hostile Shots Fired 334 | . 89 126 55 4 60 . Missed 123 | . 31 44 19 2 27 . Damage Taken 2370 | . 582 807 337 20 596 28 Core 1787 | . 439 581 251 17 477 22 Absorbed by Shields . | . . . . . . . Redirected to Core 1393 | . 352 481 184 8 346 22 Ignored by Resistances 643 | . 180 244 102 6 103 8 Core Remaining (%) 71 | 100 94 . . . 20 . Volleys Fired 281 | . 98 115 54 6 7 1 Largest 3 | . 2 2 3 3 2 1 Hottest 178 | . 110 110 178 166 140 81 Shots Fired 608 | . 191 230 160 18 8 1 Gun 544 | . 140 228 158 18 . . Cannon 63 | . 51 2 2 . 7 1 Launcher . | . . . . . . . Special 1 | . . . . . 1 . Kinetic . | . . . . . . . Thermal 607 | . 191 230 160 18 8 . Explosive . | . . . . . . . Electromagnetic 1 | . . . . . . 1 Robot Hit Streak 64 | . 27 64 35 15 . 7 Robot Miss Streak 4 | . 3 4 1 1 . . Penetration Max . | . . . . . . . Secondary Targets 12 | . 2 6 4 . . . Max Gunslinging Chain 1 | . 1 1 1 . . . Shots Hit Robots 443 | . 154 167 106 15 . 1 Core Hits 185 | . 59 73 45 6 . 2 Critical Kills . | . . . . . . . Critical Parts Destroyed . | . . . . . . . Critical Strikes 27 | . 8 6 13 . . . Burn 27 | . 8 6 13 . . . Melee Attacks . | . . . . . . . Impact . | . . . . . . . Slashing . | . . . . . . . Piercing . | . . . . . . . Sneak Attacks . | . . . . . . . Combat Hostiles . | . . . . . . . Follow-up Attacks . | . . . . . . . Damage Inflicted 8014 | . 2094 3572 1975 296 . 77 Guns 7183 | . 1380 3554 1953 296 . . Cannons 772 | . 714 18 22 . . 18 Explosions 59 | . . . . . . 59 Melee . | . . . . . . . Ramming . | . . . . . . . Kinetic . | . . . . . . . Thermal 7996 | . 2094 3572 1975 296 . 59 Explosive . | . . . . . . . Electromagnetic 18 | . . . . . . 18 Impact . | . . . . . . . Slashing . | . . . . . . . Piercing . | . . . . . . . Highest Corruption . | . . . . . . . Average Corruption . | . . . . . . . Corruption Purged . | . . . . . . . Corruption Blocked . | . . . . . . . Overload Shots . | . . . . . . . Overflow Damage 13 | . 13 . . . . . Projectiles 13 | . 13 . . . . . Explosions . | . . . . . . . Melee . | . . . . . . . Knockbacks . | . . . . . . . Impact . | . . . . . . . Kinetic . | . . . . . . . Secondary . | . . . . . . . Self-Inflicted Damage 29 | . . . . . . 29 Shots 1 | . . . . . . 1 Rammed . | . . . . . . . Targets Rammed . | . . . . . . . Kicked . | . . . . . . . Crushed . | . . . . . . . Highest Temperature 135 | . 135 19 22 4 . . Average Temperature 29 | . 66 10 4 4 . . Received Heat Transfer 1090 | . 321 474 189 9 97 . Siege Activations . | . . . . . . . Robots Corrupted . | . . . . . . . Combat Hostiles . | . . . . . . . Parts Fried 1 | . . . . . . 1 Impact Corruptions . | . . . . . . . Robots Melted 5 | . 3 1 1 . . . Combat Hostiles 3 | . 1 1 1 . . . Parts Melted 52 | . 12 20 17 3 . . Heat Transferred 18757 | . 5956 7164 5032 555 . 50 Parts Sabotaged . | . . . . . . . Parts Stolen 1 | . . . . . 1 . Parts Stripped . | . . . . . . . Power Chain Reactions 1 | . . . . . . 1 Alert | -11 -10 -9 -9 -9 -9 -6 ------- Run | Yrd Mat Mat Sto Rec Scr Fac Peak Influence 1287 | . 685 1287 1271 572 . 35 Initial 333 | . . 174 247 333 . . Average 549 | . 346 717 787 484 . 26 Maximum Alert Level 4 | . 2 4 4 2 . . Low Security (%) 11 | 100 14 10 . . . 100 Level 1 28 | . 52 11 13 27 . . Level 2 32 | . 32 20 28 72 . . Level 3 24 | . . 47 51 . . . Level 4 4 | . . 10 6 . . . Level 5 . | . . . . . . . High Security . | . . . . . . . Max Security . | . . . . . . . Squads Dispatched 21 | . 9 7 5 . . . Investigation 15 | . 9 3 3 . . . Extermination . | . . . . . . . Reinforcement 2 | . . 2 . . . . Assault 4 | . . 2 2 . . . Garrison . | . . . . . . . Intercept . | . . . . . . . Searches Triggered . | . . . . . . . Construction Impeded . | . . . . . . . Haulers Reinforced . | . . . . . . . Active Scanning Responses . | . . . . . . . Cargo Convoy Interrupts . | . . . . . . . Stealth | -11 -10 -9 -9 -9 -9 -6 --------- Run | Yrd Mat Mat Sto Rec Scr Fac Distress Signals 5 | . 1 3 1 . . . Communications Jammed . | . . . . . . . Distress Signals . | . . . . . . . Times Spotted 154 | . 39 53 40 2 20 . Peak Tracking Total 19 | . 5 6 8 1 19 . Tactical Retreats 10 | . 1 5 2 . 2 . Traps | -11 -10 -9 -9 -9 -9 -6 ------- Run | Yrd Mat Mat Sto Rec Scr Fac Traps Triggered 5 | . 2 2 1 . . . Indirectly . | . . . . . . . Trap Hack Attempts . | . . . . . . . Triggered . | . . . . . . . Disarmed . | . . . . . . . Reprogrammed . | . . . . . . . Reused . | . . . . . . . Traps Extracted . | . . . . . . . Installed . | . . . . . . . Triggered . | . . . . . . . Objects Rigged 1 | . 1 . . . . . Machines | -11 -10 -9 -9 -9 -9 -6 ---------- Run | Yrd Mat Mat Sto Rec Scr Fac Machines Disabled 15 | . . 1 6 . 7 1 Max in Single Turn 1 | . . 1 1 . 1 1 Machines Repaired . | . . . . . . . Machines Dismantled 1 | . . . 1 . . . Machines Sabotaged 2 | . 2 . . . . . Overloaded Fab Kills . | . . . . . . . Hacking | -11 -10 -9 -9 -9 -9 -6 --------- Run | Yrd Mat Mat Sto Rec Scr Fac Machines Accessed 45 | . 10 10 12 11 . 2 Terminals 34 | . 7 8 11 6 . 2 Fabricators . | . . . . . . . Repair Stations 1 | . 1 . . . . . Recycling Units 10 | . 2 2 1 5 . . Scanalyzers . | . . . . . . . Garrison Access . | . . . . . . . Total Hacks 117 | . 30 29 35 19 . 4 Successful 70 | . 19 18 19 13 . 1 Failed 47 | . 11 11 16 6 . 3 Catastrophic 3 | . 1 . . . . 2 Database Lockouts . | . . . . . . . Manual 90 | . 23 25 19 19 . 4 Terminals 105 | . 27 26 34 14 . 4 Fabricators . | . . . . . . . Repair Stations 1 | . 1 . . . . . Recycling Units 11 | . 2 3 1 5 . . Scanalyzers . | . . . . . . . Garrison Access . | . . . . . . . Terminal Hacks 28 | . 4 10 12 2 . . Robot Analysis 6 | . 1 3 1 1 . . Prototype ID Bank 5 | . 2 1 2 . . . Open Door 3 | . . . 3 . . . Branch Access Points 2 | . . 1 1 . . . Scanalyzer Index 1 | . 1 . . . . . Garrison Index 1 | . . . 1 . . . Alert Level 2 | . . 1 . 1 . . Unreport Threat 6 | . . 4 2 . . . Hauler Manifests 1 | . . . 1 . . . Zone Layout 1 | . . . 1 . . . Fabricator Hacks . | . . . . . . . Repair Station Hacks . | . . . . . . . Recycling Unit Hacks . | . . . . . . . Scanalyzer . | . . . . . . . Garrison Access Hacks . | . . . . . . . Unauthorized Hacks 42 | . 15 8 7 11 . 1 Terminals 31 | . 12 6 6 6 . 1 Assimilate 1 | . 1 . . . . . Botnet 25 | . 6 6 6 6 . 1 Detonate 1 | . 1 . . . . . Sabotage 4 | . 4 . . . . . Fabricators . | . . . . . . . Repair Stations 1 | . 1 . . . . . Patch 1 | . 1 . . . . . Recycling Units 10 | . 2 2 1 5 . . Tunnel 10 | . 2 2 1 5 . . Scanalyzers . | . . . . . . . Garrison Access . | . . . . . . . Data Cores Recovered 1 | . . . 1 . . . Used 1 | . . . 1 . . . Hacking Detections 30 | . 6 9 9 4 . 2 Full Trace Events 4 | . 3 . 1 . . . Feedback Events . | . . . . . . . Feedback Blocked . | . . . . . . . Robot Schematics Acquired . | . . . . . . . Robots Built . | . . . . . . . Authchips . | . . . . . . . Time . | . . . . . . . Total Robot Build Rating . | . . . . . . . Part Schematics Acquired . | . . . . . . . Parts Built . | . . . . . . . Authchips . | . . . . . . . Time . | . . . . . . . Total Part Build Rating . | . . . . . . . Parts Repaired . | . . . . . . . Time . | . . . . . . . Parts Recycled . | . . . . . . . Recycled Matter . | . . . . . . . Retrieved Matter . | . . . . . . . Retrieved Components . | . . . . . . . Parts Scanalyzed . | . . . . . . . Part Schematics Acquired . | . . . . . . . Parts Damaged . | . . . . . . . Bothacking | -11 -10 -9 -9 -9 -9 -6 ------------ Run | Yrd Mat Mat Sto Rec Scr Fac Used RIF Installer . | . . . . . . . Robots Hacked . | . . . . . . . Non-combat . | . . . . . . . Combat . | . . . . . . . Robot Hacks Applied . | . . . . . . . Relay Couplers Released . | . . . . . . . Fabnet Peak Effective % . | . . . . . . . Robots Rewired . | . . . . . . . Allies Hacked . | . . . . . . . Hacks Repelled . | . . . . . . . Allies | -11 -10 -9 -9 -9 -9 -6 -------- Run | Yrd Mat Mat Sto Rec Scr Fac Total Allies 2 | . . . 2 . . . Largest Group 2 | . . . 2 2 2 . Highest-Rated Group 62 | . . . 62 62 62 . Highest-Rated Ally 31 | . . . 31 31 31 . Total Orders . | . . . . . . . Ally Attacks 28 | . . . 18 . 10 . Total Damage 488 | . . . 275 . 213 . Kills 4 | . . . 2 . 2 . Allies Corrupted 1 | . . . . . 1 . Allies Melted . | . . . . . . . Intel | -11 -10 -9 -9 -9 -9 -6 ------- Run | Yrd Mat Mat Sto Rec Scr Fac Robot Analysis Total 6 | . 1 3 1 1 . . Derelict Logs Recovered . | . . . . . . . Drone Launches . | . . . . . . . Drone Recoveries . | . . . . . . . Exploration | -11 -10 -9 -9 -9 -9 -6 ------------- Run | Yrd Mat Mat Sto Rec Scr Fac Turns Passed 4163 | 44 1278 1112 650 427 592 60 Spaces Moved 4741 | 45 1084 1103 706 620 1081 102 Core 3 | 3 . . . . . . Treads . | . . . . . . . Legs . | . . . . . . . Wheels 1310 | 42 1084 184 . . . . Hover 3428 | . . 919 706 620 1081 102 Flight . | . . . . . . . Fastest Speed 50 | 50 80 52 52 52 52 52 Average Speed 59 | 78 80 56 52 52 52 52 Slowest Speed 121 | 80 80 121 52 52 52 52 Overloaded Moves . | . . . . . . . Propulsion Burnouts . | . . . . . . . Robots Hopped . | . . . . . . . Cave-ins Triggered 1 | . . . . . 1 . Exploration Rate (%) 65 | 3 98 93 90 98 73 3 Regions Visited 6 Branch Regions 3 Pre-discovered Areas 11 | . 2 2 2 5 . . Known Exits Taken 2 | . . 1 1 . . . Unknown Exits Taken 4 | 1 1 . . 1 1 . Scrap Searched 4 | . . . . . 4 . Spaces Dug 15 | . . . . . 14 1 Terrain Destroyed 12 | . . . . . 11 1 Melee . | . . . . . . . Projectile 1 | . . . . . 1 . AOE . | . . . . . . . Terrain Rammed . | . . . . . . . Walls Destroyed . | . . . . . . . Machines Disabled . | . . . . . . . Actions | -11 -10 -9 -9 -9 -9 -6 --------- Run | Yrd Mat Mat Sto Rec Scr Fac Total 5476 | 50 1302 1357 851 710 1099 107 Wait 282 | . 82 71 46 83 . . Move 4735 | 44 1083 1102 705 619 1080 102 Hop . | . . . . . . . Pick Up 4 | . 2 . 2 . . . Fast Attach 19 | 6 3 5 1 . 4 . Attach 2 | . 1 . . . . 1 Detach 1 | . . . . . 1 . Swap 21 | . 2 11 5 . 3 . Drop 16 | . 1 8 3 . 4 . Fire 281 | . 98 115 54 6 7 1 Melee . | . . . . . . . Ram . | . . . . . . . Kick . | . . . . . . . Crush . | . . . . . . . Escape Stasis . | . . . . . . . Rewire 1 | . . . . . . 1 Trap . | . . . . . . . Miscellaneous 114 | . 30 45 35 2 . 2 Route ------- -11/Scrapyard -10/Materials (discovered 5 exits: *Mat x3 / [*Min] / [*Sub]) -9/Materials (discovered 5 exits: [*Mat x3] / *Min / *Sto) -9/Storage (discovered 2 exits: [*Mat] / *Rec) -9/Recycling (discovered 2 exits: [*Fac] / [*Scr]) -9/Scraptown -6/Factory History --------- Turn | Location | Event 1 | -11/Scrapyard | Upgraded with Power slot (x1) 1 | -11/Scrapyard | Upgraded with Propulsion slot (x1) 1 | -11/Scrapyard | Upgraded with Utility slot (x1) 1 | -11/Scrapyard | Upgraded with Weapon slot (x1) 2 | -11/Scrapyard | Met Revision 17 20 | -11/Scrapyard | Discovered new exit (range 15) 45 | -11/Scrapyard | Entered Materials 181 | -10/Materials | Discovered new exit (range 4) 324 | -10/Materials | Build established: Mutant 368 | -10/Materials | Discovered new exit (range 11) 412 | -10/Materials | Reached level 2 578 | -10/Materials | Discovered new exit (range 10) 610 | -10/Materials | Discovered new exit (range 6) 661 | -10/Materials | Upgraded with Utility slot (x1) 665 | -10/Materials | Upgraded with Propulsion slot (x1) 845 | -10/Materials | Derelicts attacked the area 929 | -10/Materials | Discovered new exit (range 5) 977 | -10/Materials | Reached level 3 1227 | -10/Materials | Reached level 4 1323 | -10/Materials | Entered another Materials area 1325 | -9/Materials | Reached level 5 1375 | -9/Materials | Upgraded with Utility slot (x1) 1554 | -9/Materials | Discovered new exit (range 8) 1609 | -9/Materials | Reached level 6 1654 | -9/Materials | Destroyed 10 combat bots 1779 | -9/Materials | Reached level 7 1813 | -9/Materials | Upgraded with Utility slot (x1) 1813 | -9/Materials | Upgraded with Weapon slot (x1) 1845 | -9/Materials | Discovered new exit (range 13) 1940 | -9/Materials | Discovered new exit (range 16) 1983 | -9/Materials | Discovered new exit (range 13) 2021 | -9/Materials | Identified exit to Mines 2021 | -9/Materials | Identified exit to Storage 2090 | -9/Materials | Reached level 8 2123 | -9/Materials | First assault squad dispatched 2253 | -9/Materials | Destroyed 9 combat bots 2328 | -9/Materials | Discovered new exit (range 16) 2435 | -9/Materials | Entered Storage 2437 | -9/Storage | Reached level 9 2546 | -9/Storage | Identified exit to Recycling 2738 | -9/Storage | Reached level 10 2764 | -9/Storage | Learned location of Armory (-3) 2770 | -9/Storage | Discovered new exit (range 8) 2781 | -9/Storage | Build established: Skirmisher 2819 | -9/Storage | Destroyed 11 combat bots 2890 | -9/Storage | Met a pair of Derelict thieves 2909 | -9/Storage | Used back door to open Recycling access 3043 | -9/Storage | Destroyed 7 combat bots 3085 | -9/Storage | Entered Recycling 3085 | -9/Recycling | Accompanied by 2 allies 3212 | -9/Recycling | Reached level 11 3246 | -9/Recycling | Discovered new exit (range 8) 3404 | -9/Recycling | Scanned before Scraplab entrance 3410 | -9/Recycling | Discovered new exit (range 11) 3412 | -9/Recycling | Entered Scraplab 3512 | -9/Recycling | Entered Scraptown 3512 | -9/Scraptown | Accompanied by 2 allies 3536 | -9/Scraptown | Visited TADAMA 3545 | -9/Scraptown | Visited Shadow of the Wyrm 3562 | -9/Scraptown | Visited The Evicted 3566 | -9/Scraptown | Visited Comm Corps 3569 | -9/Scraptown | Visited Cave Peace 3574 | -9/Scraptown | Visited Spacefarers 3581 | -9/Scraptown | Visited Fellowship of the Rings 3678 | -9/Scraptown | Heard Great Nut preacher, LISTEN AND RECITE! 3714 | -9/Scraptown | Visited UFD Registry 3714 | -9/Scraptown | Registered with UFD as "Wirenade" 3731 | -9/Scraptown | Visited Modified Component R&D 3743 | -9/Scraptown | Visited Junk Cannon Lab 3767 | -9/Scraptown | Visited Scrap Suit Storage 3772 | -9/Scraptown | Visited Science Testing Area 3779 | -9/Scraptown | Visited Research Penetration Think Tank 3786 | -9/Scraptown | Visited LU-1G1's Boring Crew 3862 | -9/Scraptown | Visited Curators Association 3882 | -9/Scraptown | Visited Abandonware Association 3886 | -9/Scraptown | Learned abandonware demo "OVRCLOCK.EXE" 3927 | -9/Scraptown | Found Prototype Special Weapon 3927 | -9/Scraptown | Identified Junk Cannon 4020 | -9/Scraptown | Attacked by Scraptown defenders 4073 | -9/Scraptown | Found Prototype Special Weapon 4073 | -9/Scraptown | Identified LU-1G1's Laser Shovel 4098 | -9/Scraptown | Discovered new exit (range 3) 4103 | -9/Scraptown | Crushed by falling debris 4103 | -9/Scraptown | Core integrity fell below 50% 4104 | -9/Scraptown | Entered Factory 4105 | -6/Factory | Core integrity fell below 50% 4106 | -6/Factory | Reached level 12 4119 | -6/Factory | Reached level 13 4120 | -6/Factory | Core integrity fell below 20% 4164 | -6/Factory | Self-destructed Last Messages --------------- 04119_ Chain reaction triggered in Lgt. Ion Engine. 04119_ Sml. Matter Pod fried. 04119_ K-01 Serf destroyed. 04119_ S-27 Virus destroyed. 04119_ Assembly Bed disabled. 04119_ Reached level 13. 04123_ Used Protomatter to restore core integrity (+48, depleted) 04141_ K-01 Serf cleans the Terminal. 04146_ Connecting with Terminal... 04146_ Current location identified: Factory 04146_ Upgraded: Hack Attack % (+10) 04146_ Upgraded: Hack Defense % (+10) 04146_ Connecting with Terminal... >>Trojan(Botnet) Trojan loaded successfully. Testing... Terminal linked with 0 systems. Awaiting botnet instructions. Map ----- +----------------------------------------------------+ | ????# ## "" # | | ????#] ! + F" # | | ????# ## " # #########+### | | ????## ### "" # #???????????? | | ?????# #?# # #???????????? | | ?????# #?# !# ####????????? | | ?????# #?# # +????????? | | ?????# #?# # #????????? | | ?????# #####+## #????????? | | ?????# +????????? | | ?????####### #####????????? | | ############ #????????????? | | # ! ## #????????????? | | # ## #????????????? | | # ## #????????????? | | # ## #????????????? | | # ## ##???????????? | | # # #???????????? | | # # #???????????? | | # + #???????????? | | # # +???????????? | | # # #???????????? | | # # #???????????? | | # # #???????????? | | # "" # ??????????? | | # "T@ # ?????????? | | # "" + [! ????????? | | # # ! "??????? | | ########### "??????? | | ??????????### ??????? | | ????????????? """"" ??????? | | ????????????? ""???????????? | | ????????????? "????????????? | | ????????????????????????????? | | ????????????????????????????? | | ????????????????????????????? | | ????????????????????????????? | | ????????????????????????????? | | ????????????????????????????? | | ????????????????????????????? | | ????????????????????????????? | | ????????????????????????????? | | ????????????????????????????? | | ????????????????????????????? | | ????????????????????????????? | | ????????????????????????????? | | ????????????????????????????? | | ????????????????????????????? | | ????????????????????????????? | | ????????????????????????????? | +----------------------------------------------------+ Best States ------------- Heat Dissipation 83 Energy Generation 23 Energy Capacity 220 Matter Stores 300 Matter Capacity 300 Sight Range 16 Robot Scan Range 10 Terrain Scan Density 10 Additional Mass Support 6 Armor Coverage 150 Resistance: KI 20 Resistance: TH 20 Resistance: EX 20 Resistance: EM 35 Resistance: I 20 Resistance: S 20 Resistance: P 20 Evasion (%) 54 Offensive Hacking 20 Defensive Hacking 10 Item Schematics ----------------- None Robot Schematics ------------------ None Fabricated ------------ Nothing Alien Tech Used ----------------- None Achievements -------------- None Challenges ------------ None RPGLIKE | -11 -10 -9 -9 -9 -9 -6 --------- Run | Yrd Mat Mat Sto Rec Scr Fac Levels Raised 12 | . 3 4 2 1 . 2 XP Earned 22085 | 4000 4634 7142 2726 659 154 2770 XP Spent 13000 | 2000 4550 3300 500 . 1350 1300 Upgrades 32 | 4 18 3 1 . 2 4 Power Slot 1 | 1 . . . . . . Propulsion Slot 2 | 1 1 . . . . . Utility Slot 4 | 1 1 2 . . . . Weapon Slot 2 | 1 . 1 . . . . Heat Dissipation 6 | . 6 . . . . . Mass Support 2 | . 1 . . . 1 . Inventory Capacity 3 | . 1 . 1 . 1 . Sensor Range 5 | . 5 . . . . . Ranged Accuracy 3 | . 3 . . . . . Hack Attack % 2 | . . . . . . 2 Hack Defense % 2 | . . . . . . 2 Protomatter Created 1654 | . 302 712 576 48 . 16 Integrity Restored 1841 | . 526 847 400 20 . 48 Core 1336 | . 405 588 278 17 . 48 Parts 505 | . 121 259 122 3 . . Protomatter Decayed 958 | . 102 376 439 41 . . Game ------ Seed PhysicsBiocellPick Manual? 0 Play Time 00:47:58 Cumulative 293.4 hours Start 2025.03.29 @ 07:29:31 End 2025.03.29 @ 08:28:15 Sessions 1 Manual Loads 0 Difficulty Adventurer Special Mode Winter2019/RPGLIKE Game No. 119 Rogue 0 Adventurer 119 Explorer 0 Win Type - Total 12 Types 2/3/3/2/1/0/0/0/1 Lore% 83 Gallery% 78 Achievement% 79 Wizard Run 0 Options --------- Layout 2 ASCII 0 Keyboard 0 Movement Numpad Keybinds 0 Fullscreen 2 Font 24/Smallcaps Map View 50x44 Zoom Use 0% Tactical HUD 1 Map Filters NONE Filters NONE Steam 1 RUN: 9fb4b786-2f0c-4341-bbac-5a7fe2c7d66f